[Event "Fagernes GM Open Autumn 2024"]
[Site "Fagernes"]
[Date "2024.10.10"]
[Round "6.15"]
[White "Laddha, Shubh Jayesh"]
[Black "Sherman, Raem"]
[Result "1-0"]
[ECO "B50"]
[WhiteElo "2308"]
[BlackElo "2390"]
[Annotator "TA"]
[PlyCount "83"]
[EventDate "2024.10.03"]
[EventType "swiss"]
[EventCountry "NOR"]
[SourceTitle "playchess.com"]
[Source "ChessBase"]
[SourceQuality "1"]
[TimeControl "40/6000:2400+30"]

{[%evp 13,83,5,11,-18,-16,-27,-27,-33,-30,-34,0,0,0,0,-7,-17,-16,-20,-14,-18,14,-43,-32,-29,-31,-71,-48,-75,-102,-102,-102,-191,-167,-158,103,95,104,97,54,78,89,0,181,184,883,566,527,139,549,551,524,552,552,532,554,548,610,549,714,585,753,730,734,692,687,0,785,781,788,767,807,776]} 1. e4 {[%emt 0:00:00]} c5 {[%emt 0:00:00]} 2. Nf3 {[%emt 0:00:00]} e6 {[%emt 0:00:00]} 3. g3 {[%emt 0:00:00]} Nc6 {[%emt 0:00:00]} 4. Bg2 {[%emt 0:00:00]} Nf6 {[%emt 0:00:00]} 5. Nc3 {[%emt 0:00:00]} d6 {[%emt 0:00:00]} 6. O-O {[%emt 0:00:30]} Be7 {[%emt 0:00:00]} 7. d3 {[%emt 0:00:33]} O-O {[%emt 0:00:00]} 8. Ng5 {[%emt 0:02:46]} h6 {[%emt 0:00:00]} 9. Nh3 {[%emt 0:00:00]} Rb8 {[%emt 0:00:00]} 10. a4 {[%emt 0:04:56] Schwarz hat minimalen Vorteil.} a6 {[%emt 0:00:00]} 11. f4 {[%emt 0:05:11]} Nd4 {[%emt 0:00:16]} 12. Ne2 {[%emt 0:04:08]} b5 {[%emt 0:02:45]} 13. axb5 {[%emt 0:06:02]} axb5 {[%emt 0:00:00]} 14. c3 {[%emt 0:03:11]} Nc6 {[%emt 0:08:38]} 15. Nf2 {[%emt 0:05:01]} e5 {[%emt 0:06:33]} 16. d4 {[%emt 0:05:21]} Nd7 {[%emt 0:09:24]} 17. fxe5 {[%emt 0:08:15]} (17. Ng4 $11) 17... dxe5 $15 {[%emt 0:00:55]} 18. d5 {[%emt 0:03:06]} Na5 {[%emt 0:00:36]} 19. Ng4 {[%emt 0:00:54][%cal Og4h6]} c4 {[%emt 0:08:17]} 20. d6 {[%emt 0:10:43]} Bg5 {[%emt 0:03:25]} 21. Bxg5 {[%emt 0:00:00]} hxg5 {[%emt 0:03:58]} 22. Ne3 {[%emt 0:04:45]} (22. Nc1 $17) 22... Nb3 {[%emt 0:06:55]} 23. Nd5 {[%emt 0:01:34][%cal Oe2d4] Es drohte Qb6+. Zielt auf Nd4! ab.} Nxa1 $2 {[%emt 0:05:14] [#]} (23... Nf6 $1 $17 {[%cal Rf6d5] hält den Druck. Und jetzt ...Nxd5 wäre schön.} 24. Rb1 Be6 (24... Qxd6 $2 25. Nxf6+ Qxf6 26. Rxf6 $18) 25. Ne7+ Kh7) 24. Nd4 $1 $16 {[%emt 0:02:40] Weiß steht deutlich aktiver. Die schwarzen Türme stehen passiv.} exd4 {[%emt 0:07:33]} 25. Ne7+ {[%emt 0:00:00]} (25. Qxa1 $2 d3 26. Qa7 Bb7 27. Ne7+ Kh8 $19) 25... Qxe7 {[%emt 0:00:00]} 26. dxe7 {[%emt 0:00:00]} Re8 {[%emt 0:00:00][%cal Bf8e8,Be8e7,Be7e4][%mdl 32] [#]} 27. Qxa1 {[%emt 0:00:20]} (27. cxd4 Nb3 28. Qh5 g6 $15 (28... Rxe7 29. Qxg5 Re8 30. Qf4 $11)) ({Günstiger ist} 27. Qh5 $1 $16 {[%cal Rh5f7]} Rxe7 28. Qxg5 (28. Rxa1 d3 $15)) 27... d3 $2 {[%emt 0:03:13]} (27... dxc3 $11 {und Schwarz ist OK.} 28. e5 (28. bxc3 Ne5 $16) 28... Rxe7) 28. Qa5 $36 {[%emt 0:02:29][%mdl 2048] Schwarz steht unter starkem Druck.} f6 $2 {[%emt 0:04:04]} (28... Nb6) 29. Qc7 {[%emt 0:05:28]} Rxe7 {[%emt 0:06:45]} 30. Bh3 $2 {[%emt 0:01:26]} (30. Qd8+ $18 Kf7 31. e5 Rxe5 32. Bc6) 30... Ra8 $2 {[%emt 0:01:08][%mdl 8192]} (30... Nf8 $16 {ist eine bessere Chance.} 31. Qxb8 (31. Qxe7 Bxh3 32. Rb1 Ng6 $11) 31... Bxh3) 31. Qc6 {[%emt 0:00:28]} Nb6 {[%emt 0:05:15]} 32. Bxc8 {[%emt 0:00:09]} (32. Qxb6 Bxh3 33. Qd6 Rae8 (33... Rxe4 $2 34. Qd5+ Kf8 35. Qxe4 $18) 34. Qd5+ Kh7 $19) 32... Rxc8 {[%emt 0:00:00]} 33. Qxb6 {[%emt 0:00:00]} Rxe4 {[%emt 0:00:00]} 34. Qxb5 {[%emt 0:00:57]} Rd8 {[%emt 0:01:45] Verhindert Qd5+} 35. Rd1 {[%emt 0:06:13]} Kh8 {[%emt 0:01:55]} 36. b3 {[%emt 0:03:55]} Rde8 {[%emt 0:00:00]} 37. Kf1 {[%emt 0:01:13] Verhindert Re1+.} (37. bxc4 $2 Re1+ 38. Kg2 (38. Rxe1 $2 Rxe1+ 39. Kf2 d2 $19) 38... R8e2+ 39. Kh3 Rxd1 $19) 37... R8e5 {[%emt 0:00:00]} 38. Qb8+ {[%emt 0:00:12]} Re8 {[%emt 0:00:00]} 39. Qb5 {[%emt 0:00:00]} R8e5 {[%emt 0:00:00]} 40. Qd7 {[%emt 0:01:38] Weiß steht klar auf Gewinn.} cxb3 {[%emt 0:02:00]} 41. Qxd3 {[%emt 0:40:54]} ({Und nicht} 41. Rxd3 b2 42. Rd1 Re1+ 43. Kg2 (43. Rxe1 Rxe1+ 44. Kxe1 b1=Q+ 45. Qd1 Qe4+ 46. Kf2 Qf5+ 47. Qf3 Qc5+ 48. Qe3 Qc6 $11) 43... g4 (43... b1=B $2 {ist das falsche Schlagen.} 44. Rxb1 Rxb1 45. Qd8+ Kh7 46. Qd3+ Kh8 47. Qxb1 $18) 44. Rxe1 (44. Qxg4 R5e2+ 45. Kh3 Rxd1 $11) 44... Rxe1 45. Qd8+ (45. Qxg4 $2 b1=Q $19) 45... Kh7 46. Qd3+ Kh8 47. Qd8+ Kh7 48. Qd3+ Kh8 49. Qd8+ $11) 41... b2 {[%emt 0:41:38]} 42. Qb1 {[%emt 0:00:52] Weiß hat die Chance genutzt.   Gewichteter Fehlerwert: Weiß=0.62/Schwarz=0.49.  Verlustzug:     	---       	Schwarz=2     Fehler:       	Weiß=3     	Schwarz=2     Ungenau:       	Weiß=3     	Schwarz=3     OK:         	Weiß=15    	Schwarz=10    Bester:       	Weiß=1     	Schwarz=2     Stark:        	Weiß=1     	---} 1-0

[Event "Fagernes GM Open Autumn 2024"]
[Site "Fagernes"]
[Date "2024.10.10"]
[Round "6.16"]
[White "Namitbir Singh Walia"]
[Black "Harish, Neeraj"]
[Result "1-0"]
[ECO "B33"]
[WhiteElo "2351"]
[BlackElo "2024"]
[Annotator "RC"]
[PlyCount "115"]
[EventDate "2024.10.03"]
[EventType "swiss"]
[EventCountry "NOR"]
[SourceTitle "playchess.com"]
[Source "ChessBase"]
[SourceQuality "1"]
[TimeControl "40/6000:2400+30"]

1. e4 {[%emt 0:00:00]} c5 {[%emt 0:00:00]} 2. Nf3 {[%emt 0:00:00]} Nc6 {[%emt 0:00:00]} 3. d4 {[%emt 0:00:00]} cxd4 {[%emt 0:00:00]} 4. Nxd4 {[%emt 0:00:00]} Nf6 {[%emt 0:00:00]} 5. Nc3 {[%emt 0:00:00]} e5 {[%emt 0:00:00]} 6. Ndb5 {[%emt 0:00:00]} d6 {[%emt 0:00:00]} 7. Nd5 {[%emt 0:00:00]} Nxd5 {[%emt 0:00:00]} 8. exd5 {[%emt 0:00:00]} Nb8 {[%emt 0:00:00]} 9. a4 {[%emt 0:00:00]} Be7 {[%emt 0:00:00]} 10. Be2 {[%emt 0:00:00]} Nd7 {[%emt 0:00:00]} 11. Bd2 {[%emt 0:11:06]} Nf6 {[%emt 0:00:00]} 12. Bb4 {[%emt 0:10:58]} a6 {[%emt 0:02:51]} 13. Nc3 {[%emt 0:00:43]} Bf5 {[%emt 0:08:57]} 14. a5 {[%emt 0:08:07]} Rc8 {[%emt 0:00:00]} 15. O-O {[%emt 0:05:28]} h5 {[%emt 0:02:25]} 16. f4 {[%emt 0:11:16]} e4 {[%emt 0:03:56]} 17. Na4 {[%emt 0:05:11]} Ng4 {[%emt 0:03:50]} 18. Ra3 {[%emt 0:00:38]} e3 {[%emt 0:10:39]} 19. c4 {[%emt 0:02:32]} Bh4 {[%emt 0:04:50]} 20. g3 {[%emt 0:03:44]} Be7 {[%emt 0:01:08]} 21. Nb6 {[%emt 0:01:40]} Rc7 {[%emt 0:00:12]} 22. Qa4+ {[%emt 0:03:16]} Kf8 {[%emt 0:03:15]} 23. Bxg4 {[%emt 0:01:55]} Bxg4 {[%emt 0:03:57]} 24. Rxe3 {[%emt 0:00:00]} Rh6 {[%emt 0:00:18]} 25. Rfe1 {[%emt 0:02:42]} Kg8 {[%emt 0:03:49]} 26. Qc2 {[%emt 0:06:28]} h4 {[%emt 0:08:43]} 27. Bc3 {[%emt 0:05:18]} hxg3 {[%emt 0:03:58]} 28. hxg3 {[%emt 0:01:45]} f5 {[%emt 0:03:02]} 29. Kg2 {[%emt 0:11:51]} Bh3+ {[%emt 0:03:12]} 30. Kg1 {[%emt 0:00:00]} Bg4 {[%emt 0:00:00]} 31. Qg2 {[%emt 0:00:14]} Qe8 {[%emt 0:00:25]} 32. Bd4 {[%emt 0:03:13]} Qf7 {[%emt 0:02:15]} 33. Na8 {[%emt 0:00:05]} Rd7 {[%emt 0:00:00]} 34. Nb6 {[%emt 0:00:00]} Rc7 {[%emt 0:00:00]} 35. Re6 {[%emt 0:00:43]} Bf6 {[%emt 0:00:46]} 36. Bxf6 {[%emt 0:00:08]} Rxf6 {[%emt 0:00:38]} 37. Qf2 {[%emt 0:00:00]} Qh5 {[%emt 0:03:21]} 38. Qh2 {[%emt 0:00:10]} Bh3 {[%emt 0:01:29]} 39. Qe2 {[%emt 0:00:00]} Bg4 {[%emt 0:01:25]} 40. Qh2 {[%emt 0:00:00]} Bh3 {[%emt 0:00:22]} 41. Kf2 {[%emt 0:08:11]} Rh6 {[%emt 0:06:51]} 42. Rxh6 {[%emt 0:04:15]} Qxh6 {[%emt 0:00:06]} 43. Qh1 {[%emt 0:07:29]} Rf7 {[%emt 0:03:31]} 44. Re8+ {[%emt 0:02:43]} Rf8 {[%emt 0:00:57]} 45. Qe1 {[%emt 0:02:15]} Bg4 {[%emt 0:06:09]} 46. Qe6+ {[%emt 0:01:12]} Qxe6 {[%emt 0:00:07]} 47. Rxe6 {[%emt 0:00:12]} Rd8 {[%emt 0:00:35]} 48. Re7 {[%emt 0:03:55]} Rb8 {[%emt 0:00:32]} 49. b4 {[%emt 0:00:49]} Bh5 {[%emt 0:00:28]} 50. c5 {[%emt 0:01:08]} Kf8 {[%emt 0:01:04]} 51. Rc7 {[%emt 0:00:57]} Re8 {[%emt 0:00:25]} 52. Rc8 {[%emt 0:00:13]} Bf7 {[%emt 0:00:28]} 53. Rxe8+ {[%emt 0:00:41]} Kxe8 {[%emt 0:00:08]} 54. Ke3 {[%emt 0:00:16]} Kd8 {[%emt 0:01:13]} 55. Kd4 {[%emt 0:00:01]} Bh5 {[%emt 0:00:55]} 56. Nc4 {[%emt 0:00:11]} dxc5+ {[%emt 0:00:09]} 57. bxc5 {[%emt 0:00:02]} Bf3 {[%emt 0:00:43]} 58. Nd6 {[%emt 0:00:44]} 1-0

[Event "Fagernes GM Open Autumn 2024"]
[Site "Fagernes"]
[Date "2024.10.10"]
[Round "6.17"]
[White "Nagare Akhilesh"]
[Black "Oye-Stromberg, Alexander"]
[Result "0-1"]
[ECO "C47"]
[WhiteElo "2245"]
[BlackElo "2248"]
[Annotator "RC"]
[PlyCount "88"]
[EventDate "2024.10.03"]
[EventType "swiss"]
[EventCountry "NOR"]
[SourceTitle "playchess.com"]
[Source "ChessBase"]
[SourceQuality "1"]
[TimeControl "40/6000:2400+30"]

1. e4 {[%emt 0:00:00]} e5 {[%emt 0:00:00]} 2. Nf3 {[%emt 0:00:00]} Nc6 {[%emt 0:00:00]} 3. Nc3 {[%emt 0:00:46]} Nf6 {[%emt 0:05:02]} 4. d4 {[%emt 0:01:28]} exd4 {[%emt 0:00:00]} 5. Nxd4 {[%emt 0:00:00]} Bb4 {[%emt 0:00:00]} 6. Nxc6 {[%emt 0:00:00]} bxc6 {[%emt 0:00:00]} 7. Bd3 {[%emt 0:00:00]} O-O {[%emt 0:00:00]} 8. O-O {[%emt 0:00:00]} Re8 {[%emt 0:00:00]} 9. Bg5 {[%emt 0:01:48]} h6 {[%emt 0:01:21]} 10. Bh4 {[%emt 0:01:02]} d5 {[%emt 0:08:04]} 11. Bxf6 {[%emt 0:07:23]} Qxf6 {[%emt 0:00:00]} 12. exd5 {[%emt 0:00:00]} Bxc3 {[%emt 0:00:00]} 13. bxc3 {[%emt 0:00:00]} cxd5 {[%emt 0:00:12]} 14. Qd2 {[%emt 0:05:26]} Be6 {[%emt 0:02:06]} 15. Bb5 {[%emt 0:01:50]} Red8 {[%emt 0:00:13]} 16. Qd4 {[%emt 0:00:08]} Qxd4 {[%emt 0:06:34]} 17. cxd4 {[%emt 0:00:00]} Rab8 {[%emt 0:00:00]} 18. Bd3 {[%emt 0:00:34]} Rb2 {[%emt 0:00:00]} 19. Rfb1 {[%emt 0:01:05]} Rdb8 {[%emt 0:00:00]} 20. c3 {[%emt 0:00:00]} Kf8 {[%emt 0:00:00]} 21. a4 {[%emt 0:05:19]} Ke7 {[%emt 0:10:24]} 22. Kf1 {[%emt 0:09:57]} Kd6 {[%emt 0:04:04]} 23. Ke1 {[%emt 0:00:00]} R8b3 {[%emt 0:25:22]} 24. Rxb2 {[%emt 0:00:01]} Rxb2 {[%emt 0:00:00]} 25. a5 {[%emt 0:02:41]} Kc6 {[%emt 0:02:33]} 26. Ra4 {[%emt 0:01:16]} Kd6 {[%emt 0:02:13]} 27. Rb4 {[%emt 0:08:47]} Ra2 {[%emt 0:00:00]} 28. Rb5 {[%emt 0:00:00]} c6 {[%emt 0:00:00]} 29. Rc5 {[%emt 0:00:00]} Ra1+ {[%emt 0:00:00]} 30. Ke2 {[%emt 0:00:16]} Rh1 {[%emt 0:00:59]} 31. h3 {[%emt 0:00:00]} Rg1 {[%emt 0:00:59]} 32. Kf3 {[%emt 0:01:59]} g5 {[%emt 0:00:03]} 33. g4 {[%emt 0:04:04]} h5 {[%emt 0:01:17]} 34. gxh5 {[%emt 0:03:05]} Rh1 {[%emt 0:00:00]} 35. Kg2 {[%emt 0:05:39]} Rxh3 {[%emt 0:00:02]} 36. Be2 {[%emt 0:00:00]} g4 {[%emt 0:02:59]} 37. f3 {[%emt 0:07:16]} f5 {[%emt 0:00:00]} 38. Bd1 {[%emt 0:01:04]} Rxh5 {[%emt 0:00:07]} 39. fxg4 {[%emt 0:00:00]} fxg4 {[%emt 0:00:00]} 40. Ba4 {[%emt 0:04:50]} Bd7 {[%emt 0:00:00]} 41. c4 {[%emt 0:43:46]} Rf5 {[%emt 0:42:45]} 42. cxd5 {[%emt 0:07:33]} Rxd5 {[%emt 0:00:18]} 43. Rc4 {[%emt 0:00:05]} Rxa5 {[%emt 0:00:28]} 44. Bd1 {[%emt 0:00:10]} Ra3 {[%emt 0:04:01]} 0-1

[Event "Fagernes GM Open Autumn 2024"]
[Site "Fagernes"]
[Date "2024.10.10"]
[Round "6.18"]
[White "Sorensen, Hampus"]
[Black "Advaitt Srikant Koduri"]
[Result "1-0"]
[ECO "D90"]
[WhiteElo "2423"]
[BlackElo "2162"]
[Annotator "TA"]
[PlyCount "57"]
[EventDate "2024.10.03"]
[EventType "swiss"]
[EventCountry "NOR"]
[SourceTitle "playchess.com"]
[Source "ChessBase"]
[SourceQuality "1"]
[TimeControl "40/6000:2400+30"]

{[%evp 20,57,93,78,80,44,48,37,33,33,59,61,75,62,80,83,85,78,83,77,77,77,90,87,106,87,127,76,484,471,480,417,448,448,585,598,600,574,579,564]} 1. d4 {[%emt 0:00:00]} d5 {[%emt 0:00:47]} 2. c4 {[%emt 0:00:00]} c6 {[%emt 0:00:00]} 3. Nf3 {[%emt 0:00:00]} Nf6 {[%emt 0:00:00]} 4. Nc3 {[%emt 0:00:00]} g6 {[%emt 0:00:00]} 5. cxd5 {[%emt 0:00:00]} cxd5 {[%emt 0:00:00]} 6. Bf4 {[%emt 0:00:00]} Nc6 {[%emt 0:10:30]} 7. e3 {[%emt 0:00:00]} Bg7 {[%emt 0:00:07]} 8. h3 {[%emt 0:00:02]} O-O {[%emt 0:00:00]} 9. Be2 {[%emt 0:01:34]} a6 {[%emt 0:04:41]} 10. O-O {[%emt 0:02:51]} Bf5 {[%emt 0:05:11]} 11. Rc1 {[%emt 0:06:39]} Rc8 {[%emt 0:05:57]} 12. Na4 {[%emt 0:19:40]} Ne4 {[%emt 0:14:47]} 13. Qb3 {[%emt 0:03:01]} b5 {[%emt 0:07:41] White is slightly better.} 14. Nc5 {[%emt 0:00:06]} Na5 {[%emt 0:03:25]} 15. Qb4 {[%emt 0:10:19]} Nxc5 {[%emt 0:11:04]} 16. Rxc5 {[%emt 0:00:13]} Nc6 {[%emt 0:01:22]} 17. Qc3 {[%emt 0:09:02]} Qb6 {[%emt 0:03:45][%cal Oe7e5]} 18. Rc1 {[%emt 0:00:33]} (18. Rxd5 $2 Nxd4 19. Nxd4 Rxc3 20. Nxf5 Rc2 $19) 18... Bd7 {[%emt 0:00:09]} 19. Qd2 {[%emt 0:07:21]} ({Inferior is} 19. Rxd5 Nxd4 20. Nxd4 Rxc3 21. Rxc3 Bc8 $17) 19... e6 {[%emt 0:00:10]} 20. Ne1 {[%emt 0:00:24]} Rfd8 {[%emt 0:02:28]} 21. Nd3 {[%emt 0:02:19]} Bf8 {[%emt 0:00:39]} 22. R5c2 $36 {[%emt 0:02:00][%mdl 2048] Keeping Black busy. White is more active.} Na5 {[%emt 0:02:24]} 23. b3 {[%emt 0:00:00]} ({Weaker is} 23. Bc7 Rxc7 24. Rxc7 Nc4 25. R7xc4 bxc4 $15 (25... dxc4 26. Ne5 $15)) ({Better is} 23. Ne5 $1 {[%cal Re5d7] Threatens to win with Nxd7.} Rxc2 24. Rxc2 (24. Qxc2 Qb7 $16)) 23... Ba3 $2 {[%emt 0:01:09][%mdl 8192] [#] Loses the game.} (23... Rxc2 $16 {is tougher.} 24. Rxc2 Nc6) 24. Rxc8 $1 $18 {[%emt 0:00:00]} Rxc8 {[%emt 0:01:50]} 25. Rxc8+ {[%emt 0:00:00]} Bxc8 {[%emt 0:00:00] [#] Black is weak on the dark squares} 26. Qc3 $1 {[%emt 0:00:07] White is clearly winning.} Bd7 {[%emt 0:00:00]} 27. Bc7 {[%emt 0:00:26]} b4 {[%emt 0:00:00]} 28. Qc5 {[%emt 0:00:06]} Qxc5 {[%emt 0:03:14]} 29. Nxc5 {[%emt 0:00:00] Weighted Error Value: White=0.08 (flawless) /Black=0.54.  Loses game:     	---       	Black=1      Mistake:       	White=1     	---        Inaccurate:     	White=1     	Black=3      OK:         	White=8     	Black=6      Best:        	---       	Black=1      Strong:       	White=2     	---} 1-0

[Event "Fagernes GM Open Autumn 2024"]
[Site "Fagernes"]
[Date "2024.10.10"]
[Round "6.19"]
[White "Gasland, Lukas Dominik"]
[Black "Eliseev, Sergey"]
[Result "1-0"]
[ECO "A11"]
[WhiteElo "1905"]
[BlackElo "2276"]
[Annotator "RC"]
[PlyCount "89"]
[EventDate "2024.10.03"]
[EventType "swiss"]
[EventCountry "NOR"]
[SourceTitle "playchess.com"]
[Source "ChessBase"]
[SourceQuality "1"]
[TimeControl "40/6000:2400+30"]

1. Nf3 {[%emt 0:00:00]} d5 {[%emt 0:02:53]} 2. g3 {[%emt 0:00:29]} Nf6 {[%emt 0:00:15]} 3. Bg2 {[%emt 0:00:00]} c6 {[%emt 0:00:00]} 4. O-O {[%emt 0:00:00]} Bg4 {[%emt 0:00:00]} 5. Ne5 {[%emt 0:03:39]} Bf5 {[%emt 0:00:00]} 6. d4 {[%emt 0:01:54]} e6 {[%emt 0:00:00]} 7. c4 {[%emt 0:01:04]} Be7 {[%emt 0:00:00]} 8. Nc3 {[%emt 0:00:12]} O-O {[%emt 0:00:00]} 9. Re1 {[%emt 0:02:15]} Nbd7 {[%emt 0:00:00]} 10. Bg5 {[%emt 0:09:13]} h6 {[%emt 0:03:25]} 11. Nxd7 {[%emt 0:03:50]} Qxd7 {[%emt 0:00:00]} 12. Bxf6 {[%emt 0:00:30]} Bxf6 {[%emt 0:00:06]} 13. cxd5 {[%emt 0:00:00]} exd5 {[%emt 0:00:19]} 14. e3 {[%emt 0:02:08]} Rfe8 {[%emt 0:15:02]} 15. Rc1 {[%emt 0:01:52]} h5 {[%emt 0:12:41]} 16. b4 {[%emt 0:09:36]} a6 {[%emt 0:03:37]} 17. Na4 {[%emt 0:06:18]} Qd6 {[%emt 0:10:18]} 18. Nc5 {[%emt 0:09:35]} b6 {[%emt 0:00:27]} 19. Nb3 {[%emt 0:00:34]} h4 {[%emt 0:02:06]} 20. a3 {[%emt 0:07:34]} hxg3 {[%emt 0:00:00]} 21. hxg3 {[%emt 0:00:00]} Be4 {[%emt 0:10:26]} 22. Bxe4 {[%emt 0:07:19]} dxe4 {[%emt 0:04:12]} 23. Kg2 {[%emt 0:03:18]} g6 {[%emt 0:05:43]} 24. Qc2 {[%emt 0:01:30]} Re6 {[%emt 0:02:12]} 25. Nd2 {[%emt 0:03:59]} Qd5 {[%emt 0:00:00]} 26. Qb3 {[%emt 0:00:00]} Qf5 {[%emt 0:00:01]} 27. Rc4 {[%emt 0:03:42]} Kg7 {[%emt 0:01:11]} 28. Rh1 {[%emt 0:00:00]} Rc8 {[%emt 0:05:01]} 29. Rc2 {[%emt 0:00:55]} Ree8 {[%emt 0:03:23]} 30. Rcc1 {[%emt 0:00:41]} a5 {[%emt 0:05:30]} 31. Rh7+ {[%emt 0:07:23]} Kxh7 {[%emt 0:00:00]} 32. Qxf7+ {[%emt 0:00:00]} Kh6 {[%emt 0:03:39]} 33. Rh1+ {[%emt 0:00:29]} Kg5 {[%emt 0:00:00]} 34. Rh4 {[%emt 0:03:54]} Rf8 {[%emt 0:03:27]} 35. Qc4 {[%emt 0:02:26]} Qd5 {[%emt 0:00:45]} 36. Qe2 {[%emt 0:00:00]} Bxd4 {[%emt 0:00:21]} 37. Nxe4+ {[%emt 0:02:19]} Kf5 {[%emt 0:00:00]} 38. Qg4+ {[%emt 0:00:18]} Ke5 {[%emt 0:00:00]} 39. exd4+ {[%emt 0:00:18]} Kxd4 {[%emt 0:00:00]} 40. Qxg6 {[%emt 0:00:07]} Rce8 {[%emt 0:01:39]} 41. Qg7+ {[%emt 0:41:05]} Kc4 {[%emt 0:02:50]} 42. f3 {[%emt 0:00:00]} Kb3 {[%emt 0:01:38]} 43. Qc3+ {[%emt 0:00:00]} Ka4 {[%emt 0:00:01]} 44. bxa5 {[%emt 0:00:00]} Qxa5 {[%emt 0:05:28]} 45. Nd6+ {[%emt 0:00:00]} 1-0

[Event "Fagernes GM Open Autumn 2024"]
[Site "Fagernes"]
[Date "2024.10.10"]
[Round "6.20"]
[White "Skotheim, Andreas"]
[Black "Southcott-Moyers, Indy"]
[Result "1/2-1/2"]
[ECO "C68"]
[WhiteElo "2234"]
[BlackElo "2143"]
[Annotator "RC"]
[PlyCount "86"]
[EventDate "2024.10.03"]
[EventType "swiss"]
[EventCountry "NOR"]
[SourceTitle "playchess.com"]
[Source "ChessBase"]
[SourceQuality "1"]
[TimeControl "40/6000:2400+30"]

1. e4 {[%emt 0:00:00]} e5 {[%emt 0:00:00]} 2. Nf3 {[%emt 0:00:00]} Nc6 {[%emt 0:00:00]} 3. Bb5 {[%emt 0:00:00]} a6 {[%emt 0:00:00]} 4. Bxc6 {[%emt 0:00:00]} dxc6 {[%emt 0:00:00]} 5. O-O {[%emt 0:00:00]} Bg4 {[%emt 0:00:00]} 6. h3 {[%emt 0:00:00]} h5 {[%emt 0:00:00]} 7. d3 {[%emt 0:00:00]} Qf6 {[%emt 0:00:00]} 8. Nbd2 {[%emt 0:00:00]} g5 {[%emt 0:00:00]} 9. Nc4 {[%emt 0:00:00]} Bxf3 {[%emt 0:00:00]} 10. Qxf3 {[%emt 0:00:00]} Qxf3 {[%emt 0:00:00]} 11. gxf3 {[%emt 0:00:00]} f6 {[%emt 0:00:00]} 12. h4 {[%emt 0:00:00]} gxh4 {[%emt 0:00:00]} 13. f4 {[%emt 0:00:57]} b5 {[%emt 0:00:03]} 14. Na5 {[%emt 0:03:26]} exf4 {[%emt 0:00:00]} 15. Bxf4 {[%emt 0:03:07]} Kd7 {[%emt 0:00:00]} 16. Kg2 {[%emt 0:01:28]} Bd6 {[%emt 0:02:44]} 17. Be3 {[%emt 0:11:23]} Ne7 {[%emt 0:14:07]} 18. Nb7 {[%emt 0:05:23]} Rhg8+ {[%emt 0:10:24]} 19. Kf3 {[%emt 0:03:40]} Rg4 {[%emt 0:08:04]} 20. Nc5+ {[%emt 0:09:14]} Bxc5 {[%emt 0:02:35]} 21. Bxc5 {[%emt 0:03:03]} Rag8 {[%emt 0:01:24]} 22. Rh1 {[%emt 0:10:23]} Ng6 {[%emt 0:11:07]} 23. Be3 {[%emt 0:04:37]} f5 {[%emt 0:06:35]} 24. exf5 {[%emt 0:06:36]} Ne7 {[%emt 0:03:18]} 25. f6 {[%emt 0:03:35]} Rf8 {[%emt 0:00:19]} 26. Rh3 {[%emt 0:00:16]} Rxf6+ {[%emt 0:00:47]} 27. Ke2 {[%emt 0:00:00]} Nf5 {[%emt 0:01:46]} 28. Bc5 {[%emt 0:10:29]} Rfg6 {[%emt 0:03:02]} 29. Rhh1 {[%emt 0:03:21]} Re6+ {[%emt 0:08:26]} 30. Kd2 {[%emt 0:04:28]} Re5 {[%emt 0:08:14]} 31. b4 {[%emt 0:00:22]} a5 {[%emt 0:00:00]} 32. a3 {[%emt 0:00:16]} a4 {[%emt 0:00:00]} 33. Rae1 {[%emt 0:01:14]} Re6 {[%emt 0:00:00]} 34. Rxe6 {[%emt 0:00:45]} Kxe6 {[%emt 0:00:00]} 35. Ke2 {[%emt 0:00:39]} Kf6 {[%emt 0:01:22]} 36. Kf1 {[%emt 0:03:26]} Ke5 {[%emt 0:04:49]} 37. c3 {[%emt 0:02:48]} Rg8 {[%emt 0:02:31]} 38. Rh3 {[%emt 0:01:05]} Kf4 {[%emt 0:00:38]} 39. Be3+ {[%emt 0:01:49]} Ke5 {[%emt 0:02:40]} 40. Bc5 {[%emt 0:00:36]} Re8 {[%emt 0:00:35]} 41. Be3 {[%emt 0:07:38]} Kf6 {[%emt 0:08:28]} 42. Bf4 {[%emt 0:03:49]} Re7 {[%emt 0:00:09]} 43. Rh1 {[%emt 0:01:47]} Rd7 {[%emt 0:11:06]} 1/2-1/2